[Event "2. Itzehoer Schach Open"]
[Site "Itzehoe, Germany"]
[Date "2023.04.29"]
[Round "2.32"]
[White "Knudsen, Max Leon"]
[Black "Scheele, Justus"]
[Result "0-1"]
[TimeControl "90 min / 40 Züge + 30 min + 30 Sek pro Zug"]
[WhiteElo "931"]
[BlackElo "1098"]

1. e4 {[%clk 01:30:58]} {[%emt 00:00:01]} e5 {[%clk 01:30:51]} {[%emt
00:00:09]} 2. Nf3 {[%clk 01:31:21]} {[%emt 00:00:07]} Nc6 {[%emt 00:00:21]} 3.
Bc4 {[%clk 01:31:34]} g6 {[%clk 01:30:28]} {[%emt 00:01:20]} 4. d3 {[%clk
01:31:23]} {[%emt 00:00:40]} Nf6 {[%clk 01:29:49]} {[%emt 00:01:09]} 5. Ng5
{[%clk 01:31:39]} {[%emt 00:00:13]} Bg7 {[%clk 01:29:31]} {[%emt 00:00:49]} 6.
Nxf7 {[%clk 01:31:35]} {[%emt 00:00:34]} Qe7 {[%clk 01:27:51]} {[%emt
00:02:10]} 7. Nxh8 {[%clk 01:31:17]} {[%emt 00:00:47]} Bxh8 {[%clk 01:28:10]}
{[%emt 00:00:11]} 8. Nc3 {[%clk 01:30:41]} {[%emt 00:01:06]} d6 {[%clk
01:27:30]} {[%emt 00:01:10]} 9. Bg5 {[%clk 01:30:00]} {[%emt 00:01:11]} Qf8
{[%clk 01:27:13]} {[%emt 00:00:48]} 10. Bxf6 {[%clk 01:29:00]} {[%emt
00:01:30]} Bxf6 {[%clk 01:26:41]} {[%emt 00:01:01]} 11. Nd5 {[%clk 01:28:59]}
{[%emt 00:00:32]} Bd8 {[%clk 01:26:58]} {[%emt 00:00:13]} 12. c3 {[%clk
01:27:45]} {[%emt 00:01:44]} Ne7 {[%clk 01:26:41]} {[%emt 00:00:47]} 13. d4
{[%clk 01:26:48]} {[%emt 00:01:28]} exd4 {[%clk 01:26:45]} {[%emt 00:00:25]} 14.
cxd4 {[%clk 01:27:11]} {[%emt 00:00:07]} Nxd5 {[%clk 01:27:05]} {[%emt
00:00:08]} 15. Bxd5 {[%clk 01:27:11]} {[%emt 00:00:32]} Bh4 {[%clk 01:26:29]}
{[%emt 00:01:06]} 16. O-O {[%clk 01:27:24]} {[%emt 00:00:17]} Qf4 {[%clk
01:24:47]} {[%emt 00:02:12]} 17. e5 {[%clk 01:27:18]} {[%emt 00:00:36]} Qg5
{[%clk 01:24:33]} {[%emt 00:00:43]} 18. Qf3 {[%clk 01:26:28]} {[%emt 00:01:17]}
Bf5 {[%clk 01:23:45]} {[%emt 00:01:21]} 19. Bxb7 {[%clk 01:26:24]} {[%emt
00:00:34]} Rb8 {[%clk 01:23:38]} {[%emt 00:00:38]} 20. Qc6+ {[%clk 01:26:12]}
{[%emt 00:00:41]} Kd8 {[%clk 01:22:39]} {[%emt 00:01:29]} 21. exd6 {[%clk
01:26:16]} {[%emt 00:00:26]} cxd6 {[%clk 01:21:49]} {[%emt 00:01:21]} 22. Qxd6+
{[%clk 01:26:31]} {[%emt 00:00:14]} Bd7 {[%clk 01:22:03]} {[%emt 00:00:16]} 23.
Qxb8+ {[%clk 01:26:40]} {[%emt 00:00:21]} Ke7 {[%clk 01:21:48]} {[%emt
00:00:45]} 24. Rfe1+ {[%clk 01:26:23]} {[%emt 00:00:47]} Kf7 {[%clk 01:21:10]}
{[%emt 00:01:08]} 25. Qc7 {[%clk 01:25:33]} {[%emt 00:01:20]} Qf5 {[%clk
01:21:10]} {[%emt 00:00:30]} 26. Bd5+ {[%clk 01:25:02]} {[%emt 00:01:01]} Kf8
{[%clk 01:21:00]} {[%emt 00:00:41]} 27. Rf1 {[%clk 01:24:55]} {[%emt 00:00:34]}
Bg5 {[%clk 01:20:31]} {[%emt 00:01:01]} 28. Qc5+ {[%clk 01:24:28]} {[%emt
00:00:56]} Be7 {[%clk 01:20:13]} {[%emt 00:00:49]} 29. Qc4 {[%clk 01:24:20]}
{[%emt 00:00:37]} Bd6 {[%clk 01:19:54]} {[%emt 00:00:51]} 30. Bf3 {[%clk
01:22:49]} {[%emt 00:02:00]} Qf4 {[%clk 01:19:42]} {[%emt 00:00:42]} 31. Qd5
{[%clk 01:22:06]} {[%emt 00:01:12]} Qxh2# {[%clk 01:19:18]} {[%emt 00:00:22]}
0-1

[Event "2. Itzehoer Schach Open"]
[Site "Itzehoe, Germany"]
[Date "2023.04.29"]
[Round "2.8"]
[White "Fuhrmann, Bahne"]
[Black "Fuhrmann, Åke"]
[Result "1/2-1/2"]
[TimeControl "90 min / 40 Züge + 30 min + 30 Sek pro Zug"]
[WhiteElo "2035"]
[BlackElo "1992"]

1. d4 {[%clk 01:30:58]} {[%emt 00:00:02]} Nf6 {[%clk 01:30:54]} {[%emt
00:00:06]} 2. c4 {[%clk 01:31:25]} {[%emt 00:00:02]} g6 {[%clk 01:31:20]}
{[%emt 00:00:04]} 3. Nc3 {[%clk 01:31:53]} {[%emt 00:00:03]} Bg7 {[%clk
01:31:45]} {[%emt 00:00:04]} 4. e4 {[%clk 01:32:20]} {[%emt 00:00:03]} d6
{[%clk 01:32:09]} {[%emt 00:00:06]} 5. Be2 {[%clk 01:32:47]} {[%emt 00:00:03]}
O-O {[%clk 01:32:11]} {[%emt 00:00:28]} 6. Be3 {[%clk 01:33:12]} {[%emt
00:00:06]} e5 {[%clk 01:32:35]} {[%emt 00:00:06]} 7. d5 {[%clk 01:33:38]}
{[%emt 00:00:04]} Na6 {[%clk 01:33:00]} {[%emt 00:00:04]} 8. g4 {[%clk
01:33:49]} {[%emt 00:00:19]} Nc5 {[%clk 01:33:24]} {[%emt 00:00:06]} 9. f3
{[%clk 01:34:14]} {[%emt 00:00:06]} h5 {[%clk 01:33:48]} {[%emt 00:00:05]} 10.
g5 {[%clk 01:34:09]} {[%emt 00:00:36]} Nh7 {[%clk 01:34:12]} {[%emt 00:00:06]}
11. h4 {[%clk 01:34:06]} {[%emt 00:00:32]} f6 {[%clk 01:34:36]} {[%emt
00:00:06]} 12. Qd2 {[%clk 01:31:49]} {[%emt 00:02:47]} fxg5 {[%clk 01:34:59]}
{[%emt 00:00:07]} 13. hxg5 {[%clk 01:32:01]} {[%emt 00:00:17]} Rf4 {[%clk
01:35:20]} {[%emt 00:00:09]} 14. b4 {[%clk 01:25:26]} {[%emt 00:07:06]} Na6
{[%clk 01:34:01]} {[%emt 00:01:49]} 15. Nd1 {[%clk 01:20:59]} {[%emt 00:04:57]}
Nxg5 {[%clk 01:25:00]} {[%emt 00:09:30]} 16. Nf2 {[%clk 01:17:30]} {[%emt
00:03:59]} Nf7 {[%clk 01:16:56]} {[%emt 00:08:34]} 17. Ngh3 {[%clk 01:11:35]}
{[%emt 00:06:26]} Rh4 {[%clk 01:04:06]} {[%emt 00:13:19]} 18. Bf1 {[%clk
01:02:01]} {[%emt 00:10:04]} Qf6 {[%clk 00:55:08]} {[%emt 00:09:28]} 19. O-O-O
{[%clk 00:50:59]} {[%emt 00:11:33]} c6 {[%clk 00:48:35]} {[%emt 00:07:02]} 20.
Rg1 {[%clk 00:44:31]} {[%emt 00:06:58]} cxd5 {[%clk 00:46:28]} {[%emt
00:02:38]} 21. cxd5 {[%clk 00:44:17]} {[%emt 00:00:44]} Bd7 {[%clk 00:36:13]}
{[%emt 00:10:44]} 22. Bxa6 {[%clk 00:41:49]} {[%emt 00:02:58]} bxa6 {[%clk
00:36:12]} {[%emt 00:00:31]} 23. Rg3 {[%clk 00:42:14]} {[%emt 00:00:05]} Rf4
{[%clk 00:30:35]} {[%emt 00:06:07]} 24. Rdg1 {[%clk 00:36:37]} {[%emt
00:06:07]} Nh8 {[%clk 00:30:48]} {[%emt 00:00:16]} 25. Ng5 {[%clk 00:36:21]}
{[%emt 00:00:47]} Rc8+ {[%clk 00:27:34]} {[%emt 00:03:44]} 26. Kb1 {[%clk
00:36:41]} {[%emt 00:00:10]} h4 {[%clk 00:27:33]} {[%emt 00:00:31]} 27. R3g2
{[%clk 00:35:45]} {[%emt 00:01:26]} Rxf3 {[%clk 00:25:15]} {[%emt 00:02:48]} 28.
Nxf3 {[%clk 00:32:29]} {[%emt 00:03:46]} Qxf3 {[%clk 00:25:39]} {[%emt
00:00:06]} 29. Bh6 {[%clk 00:21:59]} {[%emt 00:11:00]} Bf6 {[%clk 00:16:40]}
{[%emt 00:09:29]} 30. Qe3 {[%clk 00:10:32]} {[%emt 00:11:57]} Rc3 {[%clk
00:14:10]} {[%emt 00:03:00]} 31. Qxa7 {[%clk 00:07:19]} {[%emt 00:03:43]} Rb3+
{[%clk 00:14:07]} {[%emt 00:00:33]} 32. axb3 {[%clk 00:07:44]} {[%emt
00:00:05]} Qxb3+ {[%clk 00:14:32]} {[%emt 00:00:04]} 33. Ka1 {[%clk 00:05:36]}
{[%emt 00:02:38]} Qa3+ {[%clk 00:14:57]} {[%emt 00:00:05]} 34. Kb1 {[%clk
00:06:04]} {[%emt 00:00:02]} Qb3+ {[%clk 00:15:25]} {[%emt 00:00:02]} 1/2-1/2

[Event "2. Itzehoer Schach Open"]
[Site "Itzehoe, Germany"]
[Date "2023.04.29"]
[Round "2.33"]
[White "Haertel, Leon"]
[Black "Dau-Schmidt, Piet"]
[Result "1-0"]
[TimeControl "90 min / 40 Züge + 30 min + 30 Sek pro Zug"]
[WhiteElo "1323"]
[BlackElo "1606"]

1. d4 {[%clk 01:30:59]} e6 {[%clk 01:30:56]} {[%emt 00:00:05]} 2. c4 {[%clk
01:31:26]} {[%emt 00:00:03]} b6 {[%clk 01:31:22]} {[%emt 00:00:04]} 3. Nc3
{[%clk 01:31:51]} {[%emt 00:00:04]} Bb7 {[%clk 01:31:46]} {[%emt 00:00:06]} 4.
Nf3 {[%clk 01:32:13]} {[%emt 00:00:08]} Bb4 {[%clk 01:32:09]} {[%emt 00:00:07]}
5. e3 {[%clk 01:32:38]} {[%emt 00:00:05]} f5 {[%clk 01:32:16]} {[%emt
00:00:23]} 6. Bd3 {[%clk 01:32:52]} {[%emt 00:00:16]} Nf6 {[%clk 01:32:40]}
{[%emt 00:00:05]} 7. O-O {[%clk 01:33:13]} {[%emt 00:00:10]} O-O {[%clk
01:33:03]} {[%emt 00:00:06]} 8. Bd2 {[%clk 01:33:03]} {[%emt 00:00:40]} Bxc3
{[%clk 01:26:54]} {[%emt 00:06:40]} 9. Bxc3 {[%clk 01:31:14]} {[%emt 00:02:19]}
Ne4 {[%clk 01:27:16]} {[%emt 00:00:07]} 10. Rc1 {[%clk 01:29:13]} {[%emt
00:02:31]} Na6 {[%clk 01:25:31]} {[%emt 00:02:15]} 11. Nd2 {[%clk 01:24:53]}
{[%emt 00:04:50]} Nxd2 {[%clk 01:20:06]} {[%emt 00:05:56]} 12. Qxd2 {[%clk
01:22:36]} {[%emt 00:02:46]} Qg5 {[%clk 01:20:30]} {[%emt 00:00:06]} 13. f4
{[%clk 01:22:24]} {[%emt 00:00:41]} Qe7 {[%clk 01:20:02]} {[%emt 00:00:59]} 14.
b4 {[%clk 01:21:24]} {[%emt 00:01:31]} c5 {[%clk 01:19:36]} {[%emt 00:00:56]}
15. b5 {[%clk 01:19:38]} {[%emt 00:02:17]} Nc7 {[%clk 01:19:59]} {[%emt
00:00:07]} 16. dxc5 {[%clk 01:19:26]} {[%emt 00:00:42]} bxc5 {[%clk 01:19:58]}
{[%emt 00:00:32]} 17. a4 {[%clk 01:17:41]} {[%emt 00:02:14]} Rfd8 {[%clk
01:19:11]} {[%emt 00:01:16]} 18. Rfd1 {[%clk 01:17:11]} {[%emt 00:01:00]} Rac8
{[%clk 01:19:02]} {[%emt 00:00:41]} 19. Qb2 {[%clk 01:16:06]} {[%emt 00:01:35]}
d5 {[%clk 01:17:41]} {[%emt 00:01:51]} 20. Be5 {[%clk 01:15:56]} {[%emt
00:00:30]} dxc4 {[%clk 01:14:02]} {[%emt 00:04:19]} 21. Bxc4 {[%clk 01:14:59]}
{[%emt 00:01:27]} Nd5 {[%clk 01:14:10]} {[%emt 00:00:23]} 22. Qb3 {[%clk
01:14:10]} {[%emt 00:01:18]} g5 {[%clk 01:02:38]} {[%emt 00:12:03]} 23. Rd2
{[%clk 01:04:34]} {[%emt 00:10:06]} Kf7 {[%clk 00:59:22]} {[%emt 00:03:45]} 24.
Rcd1 {[%clk 01:00:18]} {[%emt 00:04:46]} Rd7 {[%clk 00:41:32]} {[%emt
00:18:20]} 25. Qd3 {[%clk 00:48:29]} {[%emt 00:12:19]} Ke8 {[%clk 00:36:13]}
{[%emt 00:05:49]} 26. Qb3 {[%clk 00:45:02]} {[%emt 00:03:57]} Rcd8 {[%clk
00:36:25]} {[%emt 00:00:19]} 27. a5 {[%clk 00:44:31]} {[%emt 00:01:01]} gxf4
{[%clk 00:29:58]} {[%emt 00:06:57]} 28. exf4 {[%clk 00:44:46]} {[%emt
00:00:15]} Qh4 {[%clk 00:22:06]} {[%emt 00:08:22]} 29. g3 {[%clk 00:30:02]}
{[%emt 00:15:13]} Qh3 {[%clk 00:21:29]} {[%emt 00:01:08]} 30. Bf1 {[%clk
00:28:14]} {[%emt 00:02:18]} Qh6 {[%clk 00:18:30]} {[%emt 00:03:29]} 31. Re1
{[%clk 00:21:57]} {[%emt 00:06:47]} Kf7 {[%clk 00:18:23]} {[%emt 00:00:37]} 32.
Rc2 {[%clk 00:17:07]} {[%emt 00:05:19]} Qf8 {[%clk 00:15:50]} {[%emt 00:03:03]}
33. Qf3 {[%clk 00:15:43]} {[%emt 00:01:52]} Nf6 {[%clk 00:10:52]} {[%emt
00:05:29]} 34. Qe2 {[%clk 00:15:10]} {[%emt 00:01:03]} Be4 {[%clk 00:07:08]}
{[%emt 00:04:15]} 35. Rb2 {[%clk 00:15:06]} {[%emt 00:00:34]} Ng4 {[%clk
00:06:37]} {[%emt 00:01:01]} 36. b6 {[%clk 00:14:17]} {[%emt 00:01:19]} axb6
{[%clk 00:06:52]} {[%emt 00:00:15]} 37. axb6 {[%clk 00:14:41]} {[%emt
00:00:07]} Nxe5 {[%clk 00:05:15]} {[%emt 00:02:07]} 38. fxe5 {[%clk 00:15:05]}
{[%emt 00:00:07]} Qh6 {[%clk 00:04:02]} {[%emt 00:01:42]} 39. Qe3 {[%clk
00:14:57]} {[%emt 00:00:33]} Qxe3+ {[%clk 00:02:50]} {[%emt 00:01:48]} 40. Rxe3
{[%clk 00:15:20]} {[%emt 00:00:07]} Rb7 {[%clk 00:01:19]} {[%emt 00:02:01]} 41.
Ba6 {[%clk 00:15:19]} {[%emt 00:00:29]} Rbb8 {[%clk 00:01:24]} {[%emt
00:00:26]} 42. Re1 {[%clk 00:12:31]} {[%emt 00:03:17]} Rd5 {[%clk 00:29:01]}
{[%emt 00:02:53]} 43. Rc1 {[%clk 00:40:22]} {[%emt 00:02:40]} Rxe5 {[%clk
00:28:33]} {[%emt 00:01:00]} 44. b7 {[%clk 00:40:09]} {[%emt 00:00:42]} Rd5
{[%clk 00:28:06]} {[%emt 00:00:56]} 45. Rb5 {[%clk 00:40:00]} {[%emt 00:00:39]}
Rd7 {[%clk 00:27:28]} {[%emt 00:01:08]} 46. Rbxc5 {[%clk 00:39:53]} {[%emt
00:00:38]} Bxb7 {[%clk 00:27:41]} {[%emt 00:00:16]} 47. Rb1 {[%clk 00:38:22]}
{[%emt 00:01:53]} Bxa6 {[%clk 00:20:15]} {[%emt 00:08:04]} 48. Rxb8 {[%clk
00:38:31]} {[%emt 00:00:22]} Kf6 {[%clk 00:18:02]} {[%emt 00:02:43]} 49. Rb6
{[%clk 00:37:46]} {[%emt 00:01:15]} Rd1+ {[%clk 00:18:11]} {[%emt 00:00:21]} 50.
Kg2 {[%clk 00:38:03]} {[%emt 00:00:12]} Rd2+ {[%clk 00:18:33]} {[%emt
00:00:10]} 51. Kg1 {[%clk 00:38:00]} {[%emt 00:00:27]} Rd1+ {[%clk 00:18:55]}
{[%emt 00:00:13]} 52. Kf2 {[%clk 00:38:22]} {[%emt 00:00:07]} Rd2+ {[%clk
00:19:09]} {[%emt 00:00:17]} 53. Ke3 {[%clk 00:38:34]} {[%emt 00:00:15]} Re2+
{[%clk 00:19:16]} {[%emt 00:00:26]} 54. Kf3 {[%clk 00:38:53]} {[%emt 00:00:10]}
Ra2 {[%clk 00:19:14]} {[%emt 00:00:32]} 55. Rcc6 {[%clk 00:39:05]} {[%emt
00:00:16]} Be2+ {[%clk 00:19:21]} {[%emt 00:00:25]} 56. Ke3 {[%clk 00:39:25]}
{[%emt 00:00:10]} Bg4 {[%clk 00:18:31]} {[%emt 00:01:20]} 57. Rxe6+ {[%clk
00:39:48]} {[%emt 00:00:08]} Kg5 {[%clk 00:18:56]} {[%emt 00:00:05]} 58. h4+
{[%clk 00:40:04]} {[%emt 00:00:14]} 1-0

[ePGN "0.1;DGT LiveChess/2.2.5"]

[Event "2. Itzehoer Schach Open"]
[Site "Itzehoe, Germany"]
[Date "2023.04.29"]
[Round "2.43"]
[White "Hock, Reiner"]
[Black "Offenbaecher, Julius"]
[Result "0-1"]
[TimeControl "90 min für 40 Züge, Rest 30 min + 30 Sek pro Zug"]
[WhiteElo "1338"]
[BlackElo "1128"]

1. d4 {[%clk 01:30:56]} {[%emt 00:00:03]} Nf6 {[%clk 01:30:55]} {[%emt
00:00:05]} 2. e3 {[%clk 01:31:12]} {[%emt 00:00:14]} e6 {[%clk 01:31:12]}
{[%emt 00:00:14]} 3. Bd3 {[%clk 01:31:16]} {[%emt 00:00:25]} d5 {[%clk
01:31:16]} {[%emt 00:00:26]} 4. Nd2 {[%clk 01:31:27]} {[%emt 00:00:19]} Be7
{[%clk 01:30:48]} {[%emt 00:01:00]} 5. f4 {[%clk 01:31:33]} {[%emt 00:00:25]}
Nbd7 {[%clk 01:29:57]} {[%emt 00:01:20]} 6. Ngf3 {[%emt 00:00:20]} b6 {[%emt
00:00:48]} 7. O-O {[%clk 01:29:56]} {[%emt 00:00:59]} O-O {[%clk 01:29:41]}
{[%emt 00:00:45]} 8. e4 {[%clk 01:28:27]} {[%emt 00:01:59]} dxe4 {[%clk
01:29:15]} {[%emt 00:00:57]} 9. Nxe4 {[%clk 01:27:58]} {[%emt 00:00:59]} Bb7
{[%clk 01:29:05]} {[%emt 00:00:40]} 10. Qe2 {[%clk 01:25:42]} {[%emt 00:02:45]}
c5 {[%clk 01:24:33]} {[%emt 00:05:02]} 11. c3 {[%clk 01:25:34]} {[%emt
00:00:39]} Qc7 {[%clk 01:18:40]} {[%emt 00:06:23]} 12. Ne5 {[%clk 01:25:04]}
{[%emt 00:01:00]} Nxe4 {[%clk 01:17:45]} {[%emt 00:01:25]} 13. Bxe4 {[%clk
01:25:09]} {[%emt 00:00:25]} Bxe4 {[%clk 01:14:49]} {[%emt 00:03:26]} 14. Qxe4
{[%clk 01:24:34]} {[%emt 00:01:05]} Nf6 {[%clk 01:15:05]} {[%emt 00:00:14]} 15.
Qf3 {[%clk 01:23:37]} {[%emt 00:01:27]} cxd4 {[%clk 01:13:41]} {[%emt
00:01:54]} 16. cxd4 {[%clk 01:21:09]} {[%emt 00:02:58]} Qd6 {[%clk 01:09:43]}
{[%emt 00:04:27]} 17. Be3 {[%clk 01:20:31]} {[%emt 00:01:09]} Qd5 {[%clk
01:06:36]} {[%emt 00:03:36]} 18. Nc6 {[%clk 01:17:07]} {[%emt 00:03:54]} Qd6
{[%clk 01:05:47]} {[%emt 00:01:19]} 19. Rac1 {[%clk 01:16:13]} {[%emt
00:01:23]} Nd5 {[%clk 01:01:35]} {[%emt 00:04:41]} 20. Bd2 {[%clk 01:14:33]}
{[%emt 00:02:11]} Rfc8 {[%clk 01:00:22]} {[%emt 00:01:43]} 21. Ne5 {[%clk
01:10:39]} {[%emt 00:04:25]} Nf6 {[%clk 00:54:26]} {[%emt 00:06:26]} 22. Bc3
{[%clk 01:10:01]} {[%emt 00:01:07]} Qd5 {[%clk 00:54:36]} {[%emt 00:00:20]} 23.
Qh3 {[%clk 00:57:49]} {[%emt 00:12:42]} Qxa2 {[%emt 00:05:13]} 24. Nf3 {[%clk
00:56:37]} Nd5 {[%clk 00:46:24]} {[%emt 00:05:41]} 25. Ng5 {[%clk 00:54:47]}
{[%emt 00:02:20]} h6 {[%clk 00:45:20]} {[%emt 00:01:34]} 26. Ra1 {[%emt
00:02:35]} Qb3 {[%emt 00:01:10]} 27. Nxe6 {[%clk 00:49:13]} {[%emt 00:02:19]}
Nxc3 {[%clk 00:44:31]} {[%emt 00:01:19]} 28. Qg4 {[%clk 00:35:48]} {[%emt
00:13:55]} Qxe6 {[%clk 00:41:51]} {[%emt 00:03:10]} 29. f5 {[%clk 00:35:23]}
{[%emt 00:00:56]} Qe3+ {[%clk 00:38:09]} {[%emt 00:04:11]} 30. Rf2 {[%clk
00:34:13]} {[%emt 00:01:41]} Nd5 {[%clk 00:37:23]} {[%emt 00:01:14]} 31. Qe2
{[%clk 00:32:04]} {[%emt 00:02:40]} Rc1+ {[%clk 00:36:23]} {[%emt 00:01:31]} 32.
Rxc1 {[%clk 00:32:01]} {[%emt 00:00:25]} Qxc1+ {[%clk 00:36:49]} {[%emt
00:00:11]} 33. Rf1 {[%clk 00:32:09]} {[%emt 00:00:16]} Qe3+ {[%clk 00:37:14]}
{[%emt 00:00:11]} 34. Rf2 {[%clk 00:32:06]} {[%emt 00:00:32]} Qxe2 {[%clk
00:37:37]} {[%emt 00:00:09]} 35. Rxe2 {[%clk 00:32:16]} {[%emt 00:00:20]} Bf6
{[%clk 00:37:42]} {[%emt 00:00:24]} 36. Rd2 {[%clk 00:31:14]} {[%emt 00:01:11]}
g6 {[%clk 00:37:33]} {[%emt 00:01:01]} 37. fxg6 {[%clk 00:31:07]} {[%emt
00:00:36]} fxg6 {[%clk 00:37:52]} {[%emt 00:00:11]} 38. Rc2 {[%clk 00:31:09]}
{[%emt 00:00:28]} Bxd4+ {[%clk 00:38:11]} {[%emt 00:00:10]} 39. Kf1 {[%clk
00:31:15]} {[%emt 00:00:24]} 0-1